fUST/lending_fUST_20251029
["ID","MTS","AMOUNT","RATE_DAILY","PERIOD"]
[392573506,1761682244770,-308.30503124,0.00022572,2]
[392573507,1761682244779,-1245.06835416,0.00022597,2]
[392573508,1761682244789,-543.7145945,0.00022622,4]
[392573509,1761682244799,-163.0,0.00022669,3]
[392573510,1761682244808,-163.0,0.00022669,3]
[392573511,1761682244820,-331.0,0.00022669,3]
[392573512,1761682244829,-163.0,0.00022669,3]
[392573513,1761682244839,-152.77623627,0.00022669,3]
[392573514,1761682244848,-150.0,0.000227,2]
[392573515,1761682244858,-500.0,0.00022739,5]
[392573516,1761682244868,-500.0,0.00022739,2]
[392573517,1761682244877,-500.0,0.00022739,2]
[392573518,1761682244887,-500.0,0.00022739,2]
[392573519,1761682244896,-575.73,0.00022739,2]
[392573520,1761682244906,-500.0,0.00022739,2]
[392573521,1761682244917,-950.62,0.00022739,2]
[392573522,1761682244927,-504.3,0.00022739,2]
[392573523,1761682244937,-1037.23,0.00022739,2]
[392573524,1761682244946,-500.0,0.00022739,2]
[392573525,1761682244955,-500.0,0.00022739,2]
[392573526,1761682244964,-500.0,0.00022739,2]
[392573527,1761682244973,-500.0,0.00022739,2]
[392573528,1761682244982,-500.0,0.00022739,2]
[392573529,1761682244992,-500.0,0.00022739,2]
[392573530,1761682245001,-500.0,0.00022739,2]
[392573531,1761682245010,-500.0,0.00022739,2]
[392573532,1761682245019,-500.0,0.00022739,2]
[392573533,1761682245028,-500.0,0.00022739,2]
[392573534,1761682245037,-500.0,0.00022739,2]
[392573535,1761682245046,-546.94,0.00022739,2]
[392573536,1761682245056,-682.5,0.00022739,2]
[392573537,1761682245066,-500.0,0.00022739,2]
[392573538,1761682245076,-500.0,0.00022739,2]
[392573539,1761682245085,-540.91,0.00022739,2]
[392573540,1761682245094,-686.15,0.00022739,2]
[392573541,1761682245104,-500.0,0.00022739,2]
[392573542,1761682245114,-500.0,0.00022739,2]
[392573543,1761682245123,-500.0,0.00022739,2]
[392573544,1761682245133,-500.0,0.00022739,2]
[392573545,1761682245146,-500.0,0.00022739,2]
[392573546,1761682245155,-500.0,0.00022739,2]
[392573547,1761682245165,-500.0,0.00022739,2]
[392573548,1761682245174,-622.75,0.00022739,2]
[392573549,1761682245183,-500.0,0.00022739,2]
[392573550,1761682245192,-500.0,0.00022739,2]
[392573551,1761682245201,-500.0,0.00022739,2]
[392573552,1761682245211,-500.0,0.00022739,2]
[392573553,1761682245220,-500.0,0.00022739,2]
[392573554,1761682245229,-559.23,0.00022739,2]
[392573555,1761682245239,-500.0,0.00022739,2]
[392573556,1761682245248,-500.0,0.00022739,2]
[392573557,1761682245258,-500.0,0.00022739,2]
[392573558,1761682245267,-500.0,0.00022739,2]
[392573559,1761682245277,-500.0,0.00022739,2]
[392573560,1761682245287,-500.0,0.00022739,2]
[392573561,1761682245298,-500.0,0.00022739,2]
[392573562,1761682245307,-3893.8,0.00022739,2]
[392573563,1761682245320,-500.0,0.00022739,2]
[392573564,1761682245330,-821.34,0.00022739,2]
[392573565,1761682245339,-500.0,0.00022739,2]
[392573566,1761682245349,-500.0,0.00022739,2]
[392573567,1761682245359,-500.0,0.00022739,2]
[392573568,1761682245369,-500.0,0.00022739,2]
[392573569,1761682245379,-500.0,0.00022739,2]
[392573570,1761682245389,-500.0,0.00022739,2]
[392573571,1761682245399,-500.0,0.00022739,2]
[392573572,1761682245408,-500.0,0.00022739,2]
[392573573,1761682245419,-500.0,0.00022739,2]
[392573574,1761682245428,-500.0,0.00022739,2]
[392573575,1761682245438,-904.34,0.00022739,2]
[392573576,1761682245448,-500.0,0.00022739,2]
[392573577,1761682245457,-2152.73,0.00022739,2]
[392573578,1761682245466,-500.0,0.00022739,2]
[392573579,1761682245475,-500.0,0.00022739,2]
[392573580,1761682245485,-500.0,0.00022739,2]
[392573581,1761682245494,-500.0,0.00022739,2]
[392573582,1761682245503,-600.41,0.00022739,2]
[392573583,1761682245513,-500.0,0.00022739,2]
[392573584,1761682245523,-500.0,0.00022739,2]
[392573585,1761682245532,-599.43,0.00022739,2]
[392573586,1761682245542,-696.13,0.00022739,2]
[392573587,1761682245551,-500.0,0.00022739,2]
[392573588,1761682245560,-780.8,0.00022739,2]
[392573589,1761682245569,-678.64,0.00022739,2]
[392573590,1761682245579,-500.0,0.00022739,2]
[392573591,1761682245588,-500.0,0.00022739,2]
[392573592,1761682245597,-312.01707518,0.00022739,2]
[392573593,1761682245606,-500.0,0.00022739,2]
[392573594,1761682245615,-500.0,0.00022739,2]
[392573595,1761682245624,-504.17,0.00022739,2]
[392573596,1761682245634,-764.75,0.00022739,2]
[392573597,1761682245643,-500.0,0.00022739,2]
[392573598,1761682245652,-513.07,0.00022739,2]
[392573599,1761682245663,-500.0,0.00022739,2]
[392573600,1761682245673,-500.0,0.00022739,2]
[392573601,1761682245682,-784.08,0.00022739,2]
[392573602,1761682245693,-500.0,0.00022739,2]
[392573603,1761682245702,-500.0,0.00022739,2]
[392573604,1761682245711,-500.0,0.00022739,2]
[392573605,1761682245720,-634.41,0.00022739,2]
[392573606,1761682245731,-601.91,0.00022739,2]
[392573607,1761682245740,-836.41,0.00022739,2]
[392573608,1761682245750,-500.0,0.00022739,2]
[392573609,1761682245759,-500.0,0.00022739,2]
[392573610,1761682245769,-500.0,0.00022739,2]
[392573611,1761682245778,-500.0,0.00022739,2]
[392573613,1761682245787,-763.15,0.00022739,2]
[392573615,1761682245796,-1592.21,0.00022739,2]
[392573616,1761682245806,-500.0,0.00022739,2]
[392573618,1761682245815,-264.58581056,0.00022739,2]
[392573619,1761682245824,-500.0,0.00022739,2]
[392573621,1761682245833,-1161.6,0.00022739,2]
[392573624,1761682245843,-522.18,0.00022739,2]
[392573627,1761682245852,-500.0,0.00022739,2]
[392573629,1761682245861,-513.45,0.00022739,2]
[392573630,1761682245871,-500.0,0.00022739,2]
[392573631,1761682245880,-500.0,0.00022739,2]
[392573632,1761682245890,-500.0,0.00022739,2]
[392573633,1761682245899,-863.37,0.00022739,2]
[392573634,1761682245909,-500.0,0.00022739,2]
[392573635,1761682245921,-500.0,0.00022739,2]
[392573636,1761682245930,-1610.42,0.00022739,2]
[392573637,1761682245940,-500.0,0.00022739,2]
[392573638,1761682245949,-928.7,0.00022739,2]
[392573639,1761682245958,-500.0,0.00022739,2]
[392573640,1761682245968,-500.0,0.00022739,2]
[392573641,1761682245977,-500.0,0.00022739,2]
[392573642,1761682245987,-500.0,0.00022739,2]
[392573643,1761682245997,-500.0,0.00022739,2]
[392573644,1761682246006,-969.96,0.00022739,2]
[392573645,1761682246016,-500.0,0.00022739,2]
[392573646,1761682246025,-500.0,0.00022739,2]
[392573647,1761682246034,-500.0,0.00022739,2]
[392573648,1761682246044,-558.8026532,0.00022739,2]
[392573649,1761682246053,-216.35392085,0.00022739,2]
[392573650,1761682246062,-500.0,0.00022739,2]
[392573652,1761682246071,-678.85,0.00022739,2]
[392573654,1761682246081,-630.62,0.00022739,2]
[392573656,1761682246090,-500.0,0.00022739,2]
[392573657,1761682246099,-500.0,0.00022739,2]
[392573658,1761682246108,-500.0,0.00022739,2]
[392573660,1761682246117,-525.68,0.00022739,2]
[392573662,1761682246126,-500.0,0.00022739,2]
[392573663,1761682246135,-500.0,0.00022739,2]
[392573664,1761682246145,-500.0,0.00022739,2]
[392573665,1761682246155,-1504.45,0.00022739,2]
[392573667,1761682246167,-672.36,0.00022739,2]
[392573669,1761682246176,-500.0,0.00022739,2]
[392573670,1761682246185,-500.0,0.00022739,2]
[392573671,1761682246195,-638.99,0.00022739,2]
[392573672,1761682246204,-500.0,0.00022739,2]
[392573673,1761682246213,-500.0,0.00022739,2]
[392573674,1761682246223,-500.0,0.00022739,2]
[392573675,1761682246231,-935.82,0.00022739,2]
[392573676,1761682246241,-500.0,0.00022739,2]
[392573677,1761682246250,-500.0,0.00022739,2]
[392573678,1761682246259,-500.0,0.00022739,2]
[392573679,1761682246269,-500.0,0.00022739,2]
[392573680,1761682246278,-500.0,0.00022739,2]
[392573681,1761682246288,-892.03,0.00022739,2]
[392573682,1761682246297,-500.0,0.00022739,2]
[392573683,1761682246306,-500.0,0.00022739,2]
[392573684,1761682246316,-500.0,0.00022739,2]
[392573685,1761682246325,-633.01,0.00022739,2]
[392573686,1761682246335,-500.0,0.00022739,2]
[392573687,1761682246344,-500.0,0.00022739,2]
[392573688,1761682246354,-500.0,0.00022739,2]
[392573689,1761682246363,-568.68,0.00022739,2]
[392573690,1761682246372,-500.0,0.00022739,2]
[392573691,1761682246381,-500.0,0.00022739,2]
[392573692,1761682246391,-500.0,0.00022739,2]
[392573693,1761682246401,-500.0,0.00022739,2]
[392573694,1761682246410,-500.0,0.00022739,2]
[392573695,1761682246419,-500.0,0.00022739,2]
[392573696,1761682246429,-706.33,0.00022739,2]
[392573697,1761682246438,-502.50642202,0.00022739,2]
[392573698,1761682246448,-1269.54,0.00022739,2]
[392573699,1761682246457,-500.0,0.00022739,2]
[392573700,1761682246467,-500.0,0.00022739,2]
[392573701,1761682246476,-652.23,0.00022739,2]
[392573703,1761682246486,-500.0,0.00022739,2]
[392573704,1761682246495,-500.0,0.00022739,2]
[392573705,1761682246505,-1166.32,0.00022739,2]
[392573706,1761682246514,-528.56,0.00022739,2]
[392573707,1761682246524,-1068.76,0.00022739,2]
[392573708,1761682246533,-500.0,0.00022739,2]
[392573709,1761682246545,-500.0,0.00022739,2]
[392573710,1761682246554,-767.94,0.00022739,2]
[392573711,1761682246563,-500.0,0.00022739,2]
[392573712,1761682246572,-500.0,0.00022739,2]
[392573713,1761682246581,-500.0,0.00022739,2]
[392573714,1761682246590,-1525.05,0.00022739,2]
[392573715,1761682246599,-1433.79,0.00022739,2]
[392573716,1761682246608,-500.0,0.00022739,2]
[392573717,1761682246617,-824.07,0.00022739,2]
[392573718,1761682246626,-500.0,0.00022739,2]
[392573719,1761682246635,-1776.94,0.00022739,2]
[392573720,1761682246644,-500.0,0.00022739,2]
[392573721,1761682246653,-803.33,0.00022739,2]
[392573722,1761682246663,-500.0,0.00022739,2]
[392573723,1761682246672,-1607.37,0.00022739,2]
[392573724,1761682246681,-500.0,0.00022739,2]
[392573725,1761682246692,-670.52,0.00022739,2]
[392573726,1761682246702,-738.87,0.00022739,2]
[392573727,1761682246711,-857.63,0.00022739,2]
[392573728,1761682246768,-1391.11,0.00022739,2]
[392573729,1761682246778,-500.0,0.00022739,2]
[392573730,1761682246787,-1070.93,0.00022739,2]
[392573731,1761682246796,-500.0,0.00022739,2]
[392573732,1761682246805,-587.19,0.00022739,2]
[392573733,1761682246815,-500.0,0.00022739,2]
[392573734,1761682246824,-500.0,0.00022739,2]
[392573735,1761682246833,-635.61,0.00022739,2]
[392573736,1761682246843,-15108.46,0.00022739,2]
[392573737,1761682246852,-500.0,0.00022739,2]
[392573738,1761682246861,-962.1,0.00022739,2]
[392573739,1761682246872,-500.0,0.00022739,2]
[392573740,1761682246881,-500.0,0.00022739,2]
[392573741,1761682246890,-500.0,0.00022739,2]
[392573742,1761682246899,-500.0,0.00022739,2]
[392573743,1761682246908,-500.0,0.00022739,2]
[392573744,1761682246919,-956.26,0.00022739,2]
[392573745,1761682246928,-565.04,0.00022739,2]
[392573746,1761682246937,-500.0,0.00022739,2]
[392573747,1761682246946,-500.0,0.00022739,2]
[392573748,1761682246955,-500.0,0.00022739,2]
[392573749,1761682246964,-864.73,0.00022739,2]
[392573750,1761682246973,-500.0,0.00022739,2]
[392573751,1761682246982,-618.0,0.00022739,2]
[392573752,1761682246991,-500.0,0.00022739,2]
[392573753,1761682247001,-1366.78,0.00022739,2]
[392573754,1761682247010,-500.0,0.00022739,2]
[392573755,1761682247019,-500.0,0.00022739,2]
[392573756,1761682247028,-999.47,0.00022739,2]
[392573757,1761682247037,-755.44,0.00022739,2]
[392573758,1761682247047,-500.0,0.00022739,2]
[392573759,1761682247055,-1679.8,0.00022739,2]
[392573760,1761682247064,-500.0,0.00022739,2]
[392573761,1761682247073,-578.0,0.00022739,2]
[392573762,1761682247082,-3095.2,0.00022739,2]
[392573763,1761682247092,-500.0,0.00022739,2]
[392573764,1761682247101,-500.0,0.00022739,2]
[392573765,1761682247110,-1831.6,0.00022739,2]
[392573766,1761682247119,-500.0,0.00022739,2]
[392573767,1761682247128,-500.0,0.00022739,2]
[392573768,1761682247137,-500.0,0.00022739,2]
[392573769,1761682247146,-604.97,0.00022739,2]
[392573770,1761682247155,-1299.55,0.00022739,2]
[392573771,1761682247166,-500.0,0.00022739,2]
[392573772,1761682247175,-500.0,0.00022739,2]
[392573773,1761682247184,-1322.85,0.00022739,2]
[392573774,1761682247192,-500.0,0.00022739,2]
[392573775,1761682247202,-1113.85,0.00022739,2]
[392573776,1761682247211,-500.0,0.00022739,2]
[392573777,1761682247220,-840.58,0.00022739,2]
[392573778,1761682247229,-945.77,0.00022739,2]
[392573779,1761682247238,-2684.35,0.00022739,2]
[392573780,1761682247247,-500.0,0.00022739,2]
[392573781,1761682247256,-500.0,0.00022739,2]
[392573782,1761682247264,-1240.65,0.00022739,2]
[392573783,1761682247273,-500.0,0.00022739,2]
[392573784,1761682247282,-819.17,0.00022739,2]
[392573785,1761682247292,-597.31,0.00022739,2]
[392573786,1761682247301,-1096.85,0.00022739,2]
[392573787,1761682247310,-1406.07,0.00022739,2]
[392573788,1761682247319,-1096.01,0.00022739,2]
[392573789,1761682247328,-500.0,0.00022739,2]
[392573790,1761682247337,-500.0,0.00022739,2]
[392573791,1761682247346,-520.84,0.00022739,2]
[392573792,1761682247355,-1575.99,0.00022739,2]
[392573793,1761682247364,-500.0,0.00022739,2]
[392573794,1761682247373,-500.0,0.00022739,2]
[392573795,1761682247383,-1083.98,0.00022739,2]
[392573796,1761682247392,-526.06,0.00022739,2]
[392573797,1761682247402,-1531.28,0.00022739,2]
[392573798,1761682247413,-500.0,0.00022739,2]
[392573799,1761682247423,-910.91,0.00022739,2]
[392573800,1761682247433,-1220.6,0.00022739,2]
[392573801,1761682247442,-1024.24,0.00022739,2]
[392573802,1761682247452,-500.0,0.00022739,2]
[392573803,1761682247460,-2344.36,0.00022739,2]
[392573804,1761682247470,-500.0,0.00022739,2]
[392573805,1761682247480,-500.0,0.00022739,2]
[392573806,1761682247489,-531.37,0.00022739,2]
[392573807,1761682247498,-519.81,0.00022739,2]
[392573808,1761682247507,-500.0,0.00022739,2]
[392573809,1761682247516,-996.83,0.00022739,2]
[392573810,1761682247525,-500.0,0.00022739,2]
[392573811,1761682247534,-1681.58,0.00022739,2]
[392573812,1761682247543,-1186.69,0.00022739,2]
[392573813,1761682247552,-3793.83,0.00022739,2]
[392573814,1761682247561,-626.34,0.00022739,2]
[392573815,1761682247571,-522.4,0.00022739,2]
[392573816,1761682247580,-648.34,0.00022739,2]
[392573817,1761682247589,-500.0,0.00022739,2]
[392573818,1761682247598,-500.0,0.00022739,2]
[392573819,1761682247607,-1259.14,0.00022739,2]
[392573820,1761682247617,-500.0,0.00022739,2]
[392573821,1761682247626,-500.0,0.00022739,2]
[392573822,1761682247635,-642.1377697,0.00022739,2]
[392573823,1761682247645,-500.0,0.00022739,2]
[392573824,1761682247655,-500.0,0.00022739,2]
[392573825,1761682247667,-1208.9,0.00022739,2]
[392573826,1761682247677,-561.85,0.00022739,2]
[392573827,1761682247687,-548.17,0.00022739,2]
[392573828,1761682247702,-528.41,0.00022739,2]
[392573829,1761682247712,-743.27,0.00022739,2]
[392573830,1761682247723,-687.47,0.00022739,2]
[392573831,1761682247732,-500.0,0.00022739,2]
[392573832,1761682247743,-536.33,0.00022739,2]
[392573833,1761682247753,-957.62,0.00022739,2]
[392573834,1761682247763,-5946.02,0.00022739,2]
[392573835,1761682247774,-500.0,0.00022739,2]
[392573836,1761682247783,-500.0,0.00022739,2]
[392573837,1761682247792,-500.0,0.00022739,2]
[392573838,1761682247802,-500.0,0.00022739,2]
[392573839,1761682247812,-500.0,0.00022739,2]
[392573840,1761682247822,-1427.0,0.00022739,2]
[392573841,1761682247832,-500.0,0.00022739,2]
[392573842,1761682247842,-2063.37,0.00022739,2]
[392573843,1761682247851,-1028.57,0.00022739,2]
[392573844,1761682247860,-500.0,0.00022739,2]
[392573845,1761682247869,-500.0,0.00022739,2]
[392573846,1761682247878,-615.52,0.00022739,2]
[392573847,1761682247888,-500.0,0.00022739,2]
[392573848,1761682247897,-1899.22,0.00022739,2]
[392573849,1761682247907,-500.81,0.00022739,2]
[392573850,1761682247918,-500.0,0.00022739,2]
[392573851,1761682247928,-500.0,0.00022739,2]
[392573852,1761682247937,-500.0,0.00022739,2]
[392573853,1761682247947,-500.0,0.00022739,2]
[392573854,1761682247956,-1475.15,0.00022739,2]
[392573855,1761682247965,-469.98661056,0.00022739,2]
[392573856,1761682247975,-500.0,0.00022739,2]
[392573857,1761682247984,-500.0,0.00022739,2]
[392573858,1761682247994,-671.13,0.00022739,2]
[392573859,1761682248003,-1537.13,0.00022739,2]
[392573860,1761682248013,-1473.07,0.00022739,2]
[392573861,1761682248022,-842.85,0.00022739,2]
[392573862,1761682248031,-500.0,0.00022739,2]
[392573863,1761682248040,-1053.41,0.00022739,2]
[392573864,1761682248049,-500.0,0.00022739,2]
[392573865,1761682248058,-1329.51,0.00022739,2]
[392573866,1761682248068,-500.0,0.00022739,2]
[392573867,1761682248077,-676.33,0.00022739,2]
[392573868,1761682248086,-2112.81,0.00022739,2]
[392573869,1761682248096,-2414.78,0.00022739,2]
[392573870,1761682248106,-2118.79,0.00022739,2]
[392573871,1761682248115,-500.0,0.00022739,2]
[392573872,1761682248125,-887.34,0.00022739,2]
[392573873,1761682248134,-500.0,0.00022739,2]
[392573874,1761682248144,-1595.05,0.00022739,2]
[392573875,1761682248153,-3250.71,0.00022739,2]
[392573876,1761682248163,-889.58,0.00022739,2]
[392573877,1761682248172,-782.16,0.00022739,2]
[392573878,1761682248182,-717.59,0.00022739,2]
[392573879,1761682248191,-539.45,0.00022739,2]
[392573880,1761682248201,-500.0,0.00022739,2]
[392573881,1761682248210,-1074.83,0.00022739,2]
[392573882,1761682248219,-500.0,0.00022739,2]
[392573883,1761682248228,-500.0,0.00022739,2]
[392573884,1761682248237,-500.0,0.00022773,2]
[392573885,1761682248247,-500.0,0.00022773,2]
[392573886,1761682248258,-500.0,0.00022773,2]
[392573887,1761682248267,-500.0,0.00022773,2]
[392573888,1761682248277,-500.0,0.00022773,2]
[392573889,1761682248286,-500.0,0.00022773,2]
[392573890,1761682248295,-500.0,0.00022773,2]
[392573891,1761682248304,-500.0,0.00022773,2]
[392573892,1761682248313,-503.09089414,0.00022816,2]
[392573893,1761682248324,-160.0,0.00022821,2]
[392573894,1761682248334,-160.0,0.00022821,3]
[392573895,1761682248344,-25000.0,0.0002287,7]
[392573896,1761682248354,-8539.25075388,0.00022913,2]
[392573897,1761682248363,-320216.27871991,0.00023,2]
[392573898,1761682248927,-7248.00239484,0.00021907,10]
[392573899,1761682248948,-2374.04333219,0.00021907,10]
[392573900,1761682249104,-504.88,0.00022191,2]
[392573901,1761682249114,-500.0,0.00022465,2]
[392573902,1761682249123,-504.88,0.00022465,2]
[392573903,1761682249133,-500.0,0.00022739,2]
[392573904,1761682249142,-504.88,0.00022739,2]
[392573905,1761682249151,-1388.95999972,0.00023,2]
[392573906,1761682249162,-956.74127971,0.00023,2]
[392573907,1761682249173,-381.18565502,0.00023,2]
[392573908,1761682249185,-1963.4,0.00023,2]
[392573909,1761682249521,-3e-08,0.0002199,2]
[392573910,1761682249533,-4116.59999997,0.0002199,2]
[392573911,1761682249543,-90235.94545421,0.00023,2]
[392573912,1761682249655,500.0,0.00017328,2]
[392573913,1761682249694,500.0,0.00017328,2]
[392573914,1761682249730,500.0,0.00017328,2]
[392573915,1761682249763,500.0,0.00017328,2]
[392573916,1761682249799,500.0,0.00017328,2]
[392573917,1761682249832,186.95732376,0.00017328,2]
[392573918,1761682249938,-412.0,0.00018767,2]
[392573919,1761682249949,-412.0,0.00021767,2]
[392573920,1761682249958,-500.0,0.00021917,2]
[392573921,1761682249968,-500.0,0.00022191,2]
[392573922,1761682249978,-290.78747609,0.00022465,2]
[392573923,1761682250022,7313.05267624,0.00017229,2]
[392573924,1761682250046,10000.01,0.00017229,2]
[392573925,1761682250070,10000.01,0.00017229,2]
[392573926,1761682250095,10000.01,0.00017229,2]
[392573927,1761682250118,10000.01,0.00017229,2]
[392573928,1761682250141,10000.01,0.00017229,2]
[392573929,1761682250164,10000.01,0.00017229,2]
[392573930,1761682250187,10000.01,0.00017229,2]
[392573931,1761682250209,10000.01,0.00017229,2]
[392573932,1761682250232,10000.01,0.00017229,2]
[392573933,1761682250324,-1133.8,0.00017229,2]
[392573934,1761682250336,-1698.0254269,0.00017229,2]
[392573935,1761682253893,-167.93959276,0.00017229,2]
[392573936,1761682259786,-179.06,0.00017229,2]
[392573937,1761682263004,-179.06,0.00017229,2]
[392573938,1761682264513,-175.82579861,0.00017229,2]
[392573940,1761682268268,-336.64396496,0.00017229,2]
[392573941,1761682273362,369.77,0.000181,5]
[392573942,1761682273614,-196.0323994,0.00017229,2]
[392573943,1761682276286,-279.55148399,0.00017229,2]
[392573944,1761682279144,-172.86482475,0.00017229,2]
[392573946,1761682296954,948.45626112,0.00017229,2]
[392573947,1761682353786,164.44160823,0.00017228,2]
[392573948,1761682354114,227.54689319,0.00017228,2]
[392573949,1761682354154,160.3460163,0.00017228,2]
[392573950,1761682354510,303.86438423,0.00017228,2]
[392573951,1761682496733,430.79556718,0.00017129,2]
[392573952,1761682579313,348.33882708,0.00017201,2]
[392573954,1761682679339,171.28630482,0.00017201,2]
[392573958,1761682860700,304.79647373,0.00017165,2]
[392573959,1761683008089,171.28630482,0.00017165,2]
[392573972,1761683140996,266.69691447,0.00017147,2]
[392573989,1761683212094,-14173.462188,0.00017229,2]
[392574015,1761683251815,6502.15444483,0.00017229,2]
[392574016,1761683251839,3497.84555517,0.00017229,2]
[392574021,1761683264403,5000.0,0.000181,10]
[392574022,1761683271922,-630.12009793,0.00017229,2]
[392574023,1761683272075,-10000.01,0.00017229,2]
[392574024,1761683272225,-10000.01,0.00017229,2]
[392574025,1761683272385,-10000.01,0.00017229,2]
[392574026,1761683272508,-10000.01,0.00017229,2]
[392574027,1761683272650,-10000.01,0.00017229,2]
[392574028,1761683272797,-10000.01,0.00017229,2]
[392574029,1761683272953,-10000.01,0.00017229,2]
[392574031,1761683274424,-10000.01,0.00017229,2]
[392574032,1761683274583,-10000.01,0.00017229,2]
[392574038,1761683280527,-5000.0,0.00017229,2]
[392574040,1761683282482,0.01,0.00017228,2]
[392574041,1761683282512,299.99,0.00017228,2]
[392574046,1761683292436,421.30310006,0.00010618,2]
[392574047,1761683294344,6007.28983034,0.000125,2]
[392574048,1761683296054,-3271.4170696,0.00017229,2]
[392574049,1761683296463,-10000.01,0.00017229,2]
[392574050,1761683296586,-10000.01,0.00017229,2]
[392574051,1761683296767,-10000.01,0.00017229,2]
[392574052,1761683296919,-10000.01,0.00017229,2]
[392574053,1761683297218,-10000.01,0.00017229,2]
[392574054,1761683297251,-10000.01,0.00017229,2]
[392574055,1761683297460,-10000.01,0.00017229,2]
[392574056,1761683297552,-10000.01,0.00017229,2]
[392574058,1761683301682,-10000.01,0.00017229,2]
[392574069,1761683312570,10000.01,0.00017,2]
[392574070,1761683312592,10000.01,0.00017,2]
[392574078,1761683315772,5000.0,0.00017229,2]
[392574082,1761683316769,589.37582734,0.000149,2]
[392574083,1761683317082,1000.0,0.0001,2]
[392574084,1761683317581,474.69161187,0.00017147,2]
[392574088,1761683324864,261.42529488,0.00015,2]
[392574095,1761683338088,2674.51726591,0.00017229,2]
[392574096,1761683338115,265.82027316,0.00017229,2]
[392574098,1761683341873,-9734.18972684,0.00017229,2]
[392574099,1761683342046,-10000.01,0.00017229,2]
[392574100,1761683342185,-10000.01,0.00017229,2]
[392574101,1761683342245,300.0,0.00017228,2]
[392574103,1761683342623,-9700.01,0.00017229,2]
[392574104,1761683342811,-10000.01,0.00017229,2]
[392574105,1761683343170,-10000.01,0.00017229,2]
[392574106,1761683343241,-10000.01,0.00017229,2]
[392574109,1761683346917,-658.62475002,0.00017229,2]
[392574110,1761683347030,-269.51992806,0.00017247,2]
[392574111,1761683350009,158.23053729,0.00017147,2]
[392574113,1761683367513,182.751682,0.00016814,2]
[392574119,1761683378152,5000.0,0.00030137,120]
[392574126,1761683401812,395.49517207,0.00017265,2]
[392574174,1761683432452,-551.0,0.0001736,3]
[392574175,1761683432461,-264.1295295,0.00017365,2]
[392574177,1761683432471,-300.0,0.00017369,2]
[392574178,1761683432481,-300.0,0.00017369,2]
[392574179,1761683432490,-300.0,0.00017369,2]
[392574180,1761683432499,-1200.0,0.00017369,2]
[392574181,1761683432509,-178.41399127,0.00017369,2]
[392574182,1761683432518,-107708.55859046,0.0001737,2]
[392574183,1761683432526,-348.4049689,0.00017473,2]
[392574184,1761683432535,-300.0,0.00017573,2]
[392574185,1761683432544,-300.0,0.00017573,2]
[392574186,1761683432553,-300.0,0.00017573,2]
[392574187,1761683432561,-300.0,0.00017573,2]
[392574188,1761683432570,-300.0,0.00017573,2]
[392574189,1761683432578,-300.0,0.00017573,2]
[392574190,1761683432587,-300.0,0.00017573,2]